bitfinex/quotes_ETHUSD_20260103
["timestamp","ask_amount","ask_price","bid_price","bid_amount"]
[1767403898494,0.002,3126.7,3126.4,2.49556702]
[1767403898888,0.002,3126.7,3126.5,2.52655166]
[1767403899271,0.002,3126.7,3126.5,2.49456702]
[1767403900394,0.839,3126.8,3126.5,2.49456702]
[1767403901576,0.002,3126.7,3126.5,2.49456702]
[1767403904198,0.002,3126.7,3126.3,0.001]
[1767403904798,0.40443243,3126.7,3126.2,3.42280177]
[1767403905202,0.002,3126.7,3126.3,2.49556702]
[1767403907501,0.002,3126.7,3126.3,5.6942354]
[1767403907671,0.002,3126.7,3126.4,2.49556702]
[1767403910797,0.002,3126.7,3126.4,2.49656702]
[1767403918106,0.002,3126.7,3126.5,2.49556702]
[1767403919299,0.002,3126.7,3126.5,2.52755166]
[1767403920171,0.002,3126.9,3126.5,2.52755166]
[1767403920172,0.002,3127.2,3126.7,2.36676998]
[1767403920372,0.839,3127.4,3127.0,2.36576998]
[1767403920586,0.839,3127.4,3127.0,2.36456737]
[1767403922802,4.03660065,3127.4,3127.0,2.36456737]
[1767403925098,0.00220261,3127.3,3126.7,3.19825718]
[1767403925294,4.03660065,3127.4,3126.8,0.3770967]
[1767403925794,4.03880326,3127.4,3126.8,0.3770967]
[1767403926109,0.00220261,3127.3,3126.8,0.3770967]
[1767403927083,4.03860065,3127.4,3126.8,2.74386668]
[1767403928183,0.00220261,3127.3,3126.8,0.3770967]
[1767403928382,4.03860065,3127.4,3126.9,2.36676998]
[1767403928878,0.00220261,3127.3,3126.8,0.3770967]
[1767403929808,4.03860065,3127.4,3126.8,2.74386668]
[1767403930508,4.04080326,3127.4,3126.8,2.74386668]
[1767403930693,0.00220261,3127.3,3126.8,0.3770967]
[1767403933701,4.03860065,3127.4,3126.8,0.3770967]
[1767403933904,4.03860065,3127.4,3126.8,2.74386668]
[1767403934217,0.002,3127.3,3126.8,2.74386668]
[1767403934386,0.002,3127.3,3126.8,5.94201918]
[1767403934587,0.002,3127.3,3126.9,0.62618247]
[1767403934787,0.002,3127.3,3127.0,2.36676998]
[1767403935593,0.00220261,3127.2,3126.9,0.62618247]
[1767403935808,0.002,3127.3,3127.0,2.36676998]
[1767403937115,0.002,3127.3,3126.9,0.62618247]
[1767403937414,0.002,3127.3,3127.0,2.36676998]
[1767403938835,0.00420261,3127.3,3126.9,3.82419013]
[1767403939023,0.002,3127.3,3127.0,2.36676998]
[1767403940114,0.00420261,3127.3,3126.8,0.3770967]
[1767403940298,0.002,3127.3,3126.8,3.57519939]
[1767403940494,0.002,3127.3,3126.9,2.36676998]
[1767403940818,0.00420261,3127.3,3127.0,0.03197953]
[1767403941317,0.00420261,3127.3,3127.0,2.36676998]
[1767403941318,0.002,3127.3,3127.0,2.36676998]
[1767403942013,0.00420261,3127.3,3126.8,3.5752372]
[1767403942207,0.00420261,3127.3,3126.9,0.39270253]
[1767403942389,0.00420261,3127.3,3126.8,3.5752372]
[1767403942590,0.00420261,3127.3,3126.8,2.74386668]
[1767403942591,0.002,3127.3,3126.8,2.74386668]
[1767403943391,0.002,3127.3,3126.8,2.74486668]
[1767403943718,0.00220261,3127.2,3126.8,0.3780967]
[1767403943918,0.00220261,3127.2,3126.8,3.60820301]
[1767403944305,0.002,3127.3,3126.8,5.97497299]
[1767403944624,0.002,3127.3,3126.8,2.36776998]
[1767403944828,0.00420261,3127.3,3126.8,0.001]
[1767403945405,0.00220261,3127.2,3126.8,0.001]
[1767403945705,0.002,3127.3,3126.8,2.36776998]
[1767403946227,0.00220261,3127.2,3126.8,0.001]
[1767403946433,0.002,3127.3,3126.9,2.36676998]
[1767403946937,0.00220261,3127.2,3126.8,0.001]
[1767403947239,0.00220261,3127.2,3126.8,0.73551121]
[1767403947939,0.002,3127.3,3126.9,2.36676998]
[1767403948735,0.002,3127.3,3126.8,0.001]
[1767403949023,0.00420261,3127.3,3126.8,0.001]
[1767403949323,0.002,3127.3,3126.8,2.36914109]
[1767403949506,0.002,3127.3,3126.9,2.36814109]
[1767403950608,0.002,3127.3,3127.1,2.36814109]
[1767403956005,0.002,3127.3,3126.8,0.001]
[1767403956006,0.002,3127.3,3126.8,2.36914109]
[1767403961599,0.00220261,3127.2,3126.8,0.001]
[1767403961828,0.002,3127.3,3126.9,2.36814109]
[1767403962035,0.002,3127.3,3126.8,0.001]
[1767403962332,0.00420261,3127.3,3126.8,0.001]
[1767403962904,0.00420261,3127.3,3126.8,3.19914363]
[1767403963106,0.002,3127.4,3127.3,2.36814109]
[1767403964736,0.002,3127.4,3126.9,3.19803577]
[1767403965505,0.002,3127.3,3126.9,3.19803577]
[1767403966036,0.002,3127.3,3127.0,2.36814109]
[1767403966426,0.002,3127.4,3127.3,2.36814109]
[1767403966817,0.002,3127.4,3126.9,3.19803577]
[1767403967010,0.002,3127.4,3127.1,2.36814109]
[1767403968006,0.002,3127.4,3127.0,0.38960548]
[1767403968838,0.002,3127.4,3127.0,2.75774657]
[1767403969741,0.002,3127.4,3127.0,0.38960548]
[1767403970435,0.002,3127.4,3127.0,2.75774657]
[1767403970640,0.002,3127.4,3127.1,0.27577466]
[1767403971233,0.002,3127.4,3127.0,0.38960548]
[1767403971543,0.002,3127.4,3127.0,2.75774657]
[1767403972141,0.002,3127.4,3127.0,0.38960548]
[1767403972634,0.002,3127.4,3127.1,2.36814109]
[1767403975818,0.002,3127.4,3127.0,0.38960548]
[1767403976019,0.002,3127.4,3127.1,0.59557709]
[1767403976237,0.002,3127.4,3127.1,2.96371818]
[1767403977248,0.002,3127.4,3127.2,2.36814109]
[1767403979547,0.002,3127.4,3127.1,0.59557709]
[1767403982758,0.002,3127.4,3127.1,2.99939818]
[1767403983060,3.19923758,3127.7,3127.4,2.40282109]
[1767403983359,0.00920261,3127.6,3127.0,0.001]
[1767403984058,0.002,3127.7,3127.2,2.40382109]
[1767403984274,0.002,3127.7,3127.3,0.03197646]
[1767403985025,0.01120261,3127.7,3127.3,0.03197646]
[1767403985550,0.01120261,3127.7,3127.2,0.03197748]
[1767403986045,0.002,3127.7,3127.2,2.40382109]
[1767403987032,0.002,3127.6,3127.2,2.40382109]
[1767403987229,0.002,3127.9,3127.2,3.75795212]
[1767403987428,3.19904147,3127.9,3127.7,2.40282109]
[1767403987768,0.002,3127.9,3127.7,2.40282109]
[1767403988367,3.19904911,3127.9,3127.7,2.40282109]
[1767403989339,0.03700322,3127.8,3127.3,2.40282109]
[1767403989653,0.03700322,3127.8,3127.1,2.40382109]
[1767403991369,3.19713536,3127.8,3127.1,2.40382109]
[1767403992470,6.43127394,3127.8,3127.1,2.40382109]
[1767403992671,0.71569629,3127.7,3127.1,2.40382109]
[1767403993487,3.91296494,3127.7,3127.1,2.40382109]
[1767403997971,7.1214362,3127.7,3127.1,2.40382109]
[1767403998171,0.03700322,3127.6,3127.1,2.40382109]
[1767404000276,3.2343697,3127.6,3127.1,2.40382109]
[1767404000850,3.19736648,3127.6,3127.1,2.40382109]
[1767404004175,3.91320878,3127.6,3127.1,2.40382109]
[1767404004381,0.03700322,3127.5,3127.1,2.40382109]
[1767404004592,0.002,3127.9,3127.5,2.40282109]
[1767404004756,0.002,3127.9,3127.5,2.38305578]
[1767404005884,3.19907979,3127.9,3127.5,2.38305578]
[1767404006771,0.002,3127.9,3127.5,2.38305578]
[1767404010887,0.002,3127.9,3127.5,2.38405578]
[1767404014600,0.002,3128.6,3127.8,2.41818203]
[1767404014767,3.19836424,3128.6,3127.8,2.41818203]
[1767404014959,2.28846959,3128.5,3127.8,2.41818203]
[1767404015791,5.48493917,3128.5,3127.8,2.41818203]
[1767404018895,5.48693917,3128.5,3127.8,2.41818203]
[1767404021409,3.19846958,3128.5,3127.8,2.41818203]
[1767404024895,3.19846958,3128.5,3127.9,2.45115236]
[1767404025118,0.002,3128.5,3127.9,2.45115236]
[1767404025325,0.002,3128.5,3128.0,2.41918203]
[1767404027234,0.002,3128.5,3127.8,0.001]
[1767404027235,2.29046959,3128.5,3127.8,0.001]
[1767404029510,3.19652218,3128.4,3127.8,0.001]
[1767404029699,3.19652218,3128.4,3127.8,2.42018203]
[1767404029899,5.48499177,3128.4,3127.8,2.42018203]
[1767404032532,8.68151395,3128.4,3127.8,2.42018203]
[1767404032732,8.68151395,3128.4,3127.8,0.001]
[1767404033704,5.48499177,3128.4,3127.8,0.001]
[1767404034831,3.19652218,3128.4,3127.8,2.42018203]
[1767404035132,3.19652218,3128.4,3127.8,2.98193351]
[1767404041446,8.8838243,3128.5,3127.8,2.98193351]
[1767404041752,0.002,3128.4,3127.8,2.42018203]
[1767404047559,2.49087309,3128.4,3127.8,2.42018203]
[1767404049740,3.19662436,3128.3,3127.8,2.42018203]
[1767404051572,5.68549745,3128.3,3127.5,2.37206173]
[1767404051754,2.48887309,3128.3,3127.5,2.37206173]
[1767404054460,3.19672655,3128.2,3127.5,2.37206173]
[1767404054763,3.19672655,3128.2,3127.5,2.92902071]
[1767404058635,6.3934531,3128.2,3127.5,2.92902071]
[1767404059061,0.002,3128.4,3127.5,2.37206173]
[1767404059062,2.48887309,3128.1,3127.5,2.37206173]
[1767404061775,6.39504436,3128.4,3127.5,2.37206173]
[1767404061982,6.3934531,3128.2,3127.5,2.37206173]
[1767404064483,6.39504436,3128.4,3127.5,2.37206173]
[1767404064793,2.48887309,3128.1,3127.5,2.37206173]
[1767404064991,3.57025362,3127.9,3127.1,2.37106173]
[1767404065294,0.60611267,3128.0,3127.2,2.37106173]
[1767404065959,0.60611267,3128.0,3127.2,5.56881031]
[1767404066154,0.60611267,3128.0,3127.3,2.37106173]
[1767404066869,3.19703315,3127.9,3127.3,2.37106173]
[1767404072981,3.19703315,3127.9,3127.3,2.37206173]
[1767404074285,7.34296171,3127.9,3127.3,2.37206173]
[1767404074588,4.14592856,3127.9,3127.3,2.37206173]
[1767404074792,3.19703315,3127.9,3127.3,2.37206173]
[1767404078665,2.36530595,3127.8,3127.3,0.001]
[1767404079390,6.3940663,3127.9,3127.3,0.001]
[1767404079593,6.3940663,3127.9,3127.3,2.37602253]
[1767404079793,7.33061479,3127.9,3127.3,2.37602253]
[1767404080394,9.69592074,3127.9,3127.3,2.37602253]
[1767404080884,7.33061479,3127.9,3127.3,2.37602253]
[1767404081399,2.36530595,3127.5,3126.8,0.001]
[1767404081572,2.95886191,3127.4,3126.8,0.001]
[1767404081768,2.36530595,3127.4,3126.8,0.001]
[1767404083204,3.19764653,3127.3,3126.8,0.001]
[1767404084190,5.56295248,3127.3,3126.8,0.001]
[1767404084798,6.3949156,3127.5,3126.8,2.37602253]
[1767404085131,7.15418869,3127.5,3126.8,2.37602253]
[1767404085399,2.36530595,3127.4,3126.8,2.37602253]
[1767404085698,2.36530595,3127.4,3126.8,0.001]
[1767404086399,7.15418869,3127.5,3126.4,0.001]
[1767404086400,2.36530595,3126.9,3126.4,0.001]
[1767404086698,0.839,3127.2,3126.6,2.37502253]
[1767404086998,4.03679917,3127.2,3126.6,2.37502253]
[1767404088304,4.03679917,3127.2,3126.8,0.001]
[1767404090703,2.36530595,3127.1,3126.8,0.001]
[1767404092204,4.03679917,3127.2,3126.8,0.001]
[1767404092802,6.40210512,3127.2,3126.8,0.001]
[1767404095115,4.03679917,3127.2,3126.8,0.001]
[1767404095306,4.03879917,3127.2,3126.8,0.001]
[1767404096289,6.40410512,3127.2,3126.8,0.001]
[1767404101206,2.40436832,3127.1,3126.8,0.001]
[1767404101811,4.03879917,3127.2,3126.8,0.001]
[1767404102384,0.841,3127.2,3126.8,0.001]
[1767404102700,4.03874925,3127.2,3126.8,0.001]
[1767404103085,0.841,3127.2,3126.8,0.001]
[1767404103604,4.03877661,3127.2,3126.8,0.001]
[1767404108015,4.03731661,3127.2,3126.8,0.001]
[1767404109320,0.83954,3127.2,3126.8,0.001]
[1767404110221,0.77388,3127.2,3126.8,0.001]
[1767404110425,3.97163357,3127.2,3126.8,0.001]
[1767404110721,6.37600189,3127.2,3126.8,0.001]
[1767404111627,6.36688189,3127.2,3126.8,0.001]
[1767404112408,3.96251357,3127.2,3126.8,0.001]
[1767404112736,3.95786357,3127.2,3126.8,0.001]
[1767404116434,0.76011,3127.2,3126.8,0.001]
[1767404116644,2.40436832,3127.8,3127.0,2.44950929]
[1767404116793,3.19353758,3127.7,3127.2,2.44950929]
[1767404117131,4.03253758,3127.7,3127.2,2.44950929]
[1767404117335,0.839,3127.7,3127.2,2.44950929]
[1767404118634,0.839,3127.9,3127.3,2.44850929]
[1767404120112,4.03337393,3127.9,3127.3,2.44850929]
[1767404121445,4.03337393,3127.9,3127.4,2.44950929]
[1767404121446,0.83629,3127.9,3127.4,2.44950929]
[1767404124048,0.83629,3127.9,3127.4,5.64701639]
[1767404124350,0.83629,3127.9,3127.4,6.55698806]
[1767404124512,0.83629,3127.9,3127.4,3.35947824]
[1767404124710,0.83829,3127.9,3127.4,3.35947824]
[1767404125352,0.83829,3127.9,3127.4,6.55701666]
[1767404125661,0.83829,3127.9,3127.5,2.44950929]
[1767404125816,0.83829,3127.9,3127.6,0.65570167]
[1767404127835,0.83725,3127.9,3127.6,0.65570167]
[1767404128744,0.002,3127.9,3127.6,0.65570167]
[1767404129110,0.00084,3127.9,3127.6,0.65570167]
[1767404129722,0.00084,3127.9,3127.5,2.44950929]
[1767404131843,5.48145287,3128.1,3127.5,2.44950929]
[1767404132148,5.48145287,3128.1,3127.4,3.19852743]
[1767404132535,5.48145287,3128.1,3127.4,2.26719026]
[1767404132840,0.00087,3127.9,3127.4,2.26719026]
[1767404133044,0.00087,3127.9,3127.5,0.22671903]
[1767404140621,0.00087,3127.9,3127.5,0.22771903]
[1767404144332,2.28568926,3127.9,3127.3,3.1975988]
[1767404144542,2.28568926,3127.9,3127.1,3.19784074]
[1767404144944,0.00087,3127.9,3127.2,2.26619026]
[1767404145181,0.00087,3127.9,3127.4,2.26619026]
[1767404145937,0.00087,3127.9,3127.4,5.46371278]
[1767404146138,0.00087,3127.9,3127.5,2.26619026]
[1767404146830,0.00087,3127.9,3127.2,2.26619026]
[1767404148754,0.00087,3127.9,3127.5,2.26619026]
[1767404148956,0.00087,3127.9,3127.6,5.46353007]
[1767404149841,0.00087,3127.9,3127.6,2.26619026]
[1767404154966,0.00087,3127.9,3127.6,5.46352338]
[1767404155788,0.00087,3127.9,3127.6,2.26619026]
[1767404160969,0.00087,3127.9,3127.6,5.46352948]
[1767404161269,0.00087,3127.9,3127.6,2.26619026]
[1767404162371,0.00087,3127.9,3127.6,5.4635237]
[1767404162774,0.00087,3127.9,3127.6,2.26619026]
[1767404162970,0.00087,3127.9,3127.6,3.19733238]
[1767404163972,0.00087,3127.9,3127.5,3.42411254]
[1767404168581,0.00087,3127.9,3127.5,5.86642699]
[1767404174483,0.00087,3127.9,3127.5,5.63970796]
[1767404178263,0.00087,3127.9,3127.5,3.19739351]
[1767404179184,0.00087,3127.9,3127.4,3.19854428]
[1767404179682,0.00087,3127.9,3127.5,2.44231445]
[1767404180387,0.00087,3127.9,3127.4,3.19854428]
[1767404180616,0.00087,3127.9,3127.5,0.88394807]
[1767404181086,0.00087,3127.9,3127.5,3.32626252]
[1767404181386,0.00087,3127.9,3127.5,6.52366325]
[1767404182491,0.00087,3127.9,3127.6,2.44231445]
[1767404184374,0.00087,3127.9,3127.6,5.63964105]
[1767404184574,0.00087,3127.9,3127.7,2.44231445]
[1767404192973,5.46820636,3128.4,3127.7,2.44231445]
[1767404192974,0.002,3128.4,3127.8,2.41426503]
[1767404193294,3.19852626,3128.4,3127.8,2.41426503]
[1767404194196,0.002,3128.5,3127.8,2.41426503]
[1767404194197,0.002,3128.5,3128.1,2.38329368]
[1767404194879,0.002,3128.5,3128.1,5.58004998]
[1767404195792,0.002,3128.4,3128.1,5.58004998]
[1767404196183,0.002,3128.4,3128.1,6.45775141]
[1767404197291,0.002,3128.4,3128.1,3.26099511]
[1767404198779,0.002,3128.4,3128.1,0.87770143]
[1767404201303,0.002,3128.4,3128.1,4.07450853]
[1767404201807,0.002,3128.4,3128.1,6.45780221]
[1767404202177,0.002,3128.6,3128.3,2.38229368]
[1767404202902,0.002,3128.9,3128.5,2.38329368]
[1767404203083,3.19561902,3129.3,3128.2,0.64578022]
[1767404203084,0.96891833,3129.5,3128.8,2.38329368]
[1767404203276,6.40273989,3129.5,3128.8,2.38329368]
[1767404203885,2.36627208,3129.4,3128.6,2.38329368]
[1767404204181,2.36627208,3129.4,3128.6,2.97864094]
[1767404204376,2.36627208,3129.4,3128.6,0.59534726]
[1767404204377,2.36627208,3129.3,3128.6,0.59534726]
[1767404204592,2.36627208,3129.3,3128.6,2.97864094]
[1767404205392,3.19559377,3129.4,3128.7,2.38329368]
[1767404206193,5.56186585,3129.4,3128.7,2.38329368]
[1767404208011,5.56186585,3129.4,3128.7,3.000797]
[1767404208308,5.56186585,3129.4,3128.8,2.38329368]
[1767404209613,3.19559377,3129.4,3128.8,2.38329368]
[1767404209803,5.56186585,3129.4,3128.7,0.61750332]
[1767404210005,5.56186585,3129.4,3128.6,5.57959605]
[1767404211011,5.56386585,3129.4,3128.6,5.57959605]
[1767404211211,5.56386585,3129.4,3128.7,2.38329368]
[1767404212620,8.75945962,3129.4,3128.7,2.38329368]
[1767404215523,5.56386585,3129.4,3128.7,2.38329368]
[1767404215694,6.52389397,3129.4,3128.7,2.38329368]
[1767404220623,9.71948774,3129.4,3128.7,2.38329368]
[1767404220991,2.45097841,3129.3,3128.1,5.6259919]
[1767404221214,2.45097841,3129.3,3128.1,5.62598758]
[1767404221423,2.45097841,3129.1,3128.1,2.42919113]
[1767404221727,2.45097841,3128.9,3128.1,2.42919113]
[1767404222730,2.45097841,3128.7,3128.1,2.42919113]
[1767404222942,2.45097841,3128.7,3128.0,0.001]
[1767404224626,8.84361409,3128.6,3128.0,0.001]
[1767404224793,0.88436141,3128.5,3128.0,0.001]
[1767404225207,2.45097841,3128.4,3128.0,0.001]
[1767404226404,0.88436141,3128.5,3128.0,0.001]
[1767404226914,3.19652218,3128.4,3128.0,0.001]
[1767404227501,5.64750059,3128.4,3128.0,0.001]
[1767404228537,3.19652218,3128.4,3128.0,0.001]
[1767404230739,6.62031857,3128.4,3128.0,0.001]
[1767404231637,2.45097841,3128.3,3127.5,2.42919113]
[1767404232005,3.19672655,3128.2,3127.5,2.42919113]
[1767404233025,3.19672655,3128.2,3127.4,2.43019113]
[1767404233026,5.64770496,3128.2,3127.4,2.43019113]
[1767404233347,2.45097841,3128.1,3127.4,2.43019113]
[1767404235908,3.19689919,3128.1,3127.4,2.43019113]
[1767404238153,3.19672655,3128.2,3127.4,2.43019113]
[1767404239055,6.39345686,3128.2,3127.4,2.43019113]
[1767404239961,7.37518219,3128.2,3127.4,2.43019113]
[1767404245974,9.8261606,3128.2,3127.4,2.43019113]
[1767404256258,9.8281606,3128.2,3127.4,2.43019113]
[1767404266217,7.37718219,3128.2,3127.4,2.43019113]
[1767404267321,7.37718219,3128.2,3127.4,5.62772399]
[1767404267513,7.37718219,3128.2,3127.5,2.42216947]
[1767404269414,4.18045188,3128.2,3127.5,2.42216947]
[1767404274711,4.18045188,3128.2,3127.6,2.42216947]
[1767404274910,0.002,3128.2,3127.8,2.42216947]
[1767404277819,0.002,3128.2,3127.9,2.42116947]
[1767404284317,0.002,3128.2,3127.6,3.19729545]
[1767404284318,0.002,3128.2,3127.6,5.48394428]
[1767404285301,0.002,3128.2,3127.7,2.28664883]
[1767404290027,0.002,3128.2,3127.8,2.28664883]
[1767404291730,0.002,3128.2,3127.8,5.48376351]
[1767404291919,0.002,3128.2,3127.9,0.58034668]
[1767404292126,0.002,3128.2,3127.9,0.54837635]
[1767404295543,0.002,3128.2,3127.8,5.48378385]
[1767404304413,0.002,3128.2,3127.9,2.28664883]
[1767404316149,0.002,3128.2,3127.9,5.48367966]
[1767404316526,6.52319494,3128.7,3128.0,2.4311518]
[1767404316727,2.48793099,3128.6,3128.0,2.4311518]
[1767404317058,2.48793099,3128.6,3127.8,5.62924923]
[1767404317233,2.48793099,3128.6,3127.9,0.56292492]
[1767404318836,5.68432921,3128.6,3127.9,0.56292492]
[1767404319051,2.48793099,3128.5,3127.9,0.56292492]
[1767404319232,2.48793099,3128.5,3127.8,0.001]
[1767404320248,2.48793099,3128.5,3127.9,0.001]
[1767404321151,3.19652218,3128.4,3127.9,0.001]
[1767404321742,5.6843979,3128.5,3127.9,0.001]
[1767404323458,2.48793099,3128.5,3127.9,0.001]
[1767404323965,5.68435573,3128.5,3127.9,0.001]
[1767404324658,2.48793099,3128.5,3127.9,0.56402872]
[1767404324953,3.19833176,3128.6,3128.0,2.4311518]
[1767404325325,5.68626275,3128.6,3128.0,2.4311518]
[1767404327249,5.68626275,3128.6,3127.9,0.56402872]
[1767404328058,2.48793099,3128.5,3127.9,0.56402872]
[1767404329238,3.19652218,3128.4,3127.9,0.001]
[1767404333132,2.48793099,3128.5,3127.9,0.001]
[1767404337864,5.68638081,3128.5,3127.9,0.001]
[1767404340469,5.68638081,3128.5,3127.9,2.33127303]
[1767404357086,2.46978871,3128.4,3127.9,0.001]
[1767404357982,3.19844982,3128.5,3127.9,2.33127303]
[1767404358472,2.46978871,3128.4,3127.9,0.001]
[1767404359284,0.002,3128.5,3127.9,0.001]
[1767404359686,0.002,3128.5,3127.9,2.33127303]
[1767404359882,0.002,3128.5,3127.9,2.56450033]
[1767404362199,0.002,3128.5,3128.0,2.33027303]
[1767404363863,2.47178871,3129.2,3128.3,2.33027303]
[1767404364065,3.19772739,3129.2,3128.3,2.33027303]
[1767404364291,3.19772739,3129.2,3128.6,2.33027303]
[1767404364292,0.002,3129.2,3128.6,2.33027303]
[1767404367693,2.47178871,3129.2,3128.6,2.33027303]
[1767404369191,5.66749627,3129.2,3128.6,2.33027303]
[1767404370590,2.47178871,3129.2,3128.6,5.52658579]
[1767404370790,2.47178871,3129.2,3128.6,2.33027303]
[1767404371095,2.47178871,3129.2,3128.7,0.55266671]
[1767404371876,5.66749817,3129.2,3128.7,0.55266671]
[1767404372063,2.47178871,3129.2,3128.7,0.55266671]
[1767404372706,0.002,3129.2,3128.7,2.94091418]
[1767404375115,0.002,3129.2,3128.7,2.38824747]
[1767404389837,2.43356713,3129.1,3128.5,3.19637408]
[1767404392976,0.002,3129.2,3128.7,2.38824747]
[1767404394939,2.43556713,3129.2,3128.5,0.001]
[1767404395446,2.43556713,3129.2,3128.5,2.38924747]
[1767404396947,3.1958071,3129.1,3128.5,2.38924747]
[1767404398343,3.1958071,3129.1,3128.5,2.97112688]
[1767404398844,2.43356713,3129.1,3128.5,2.97112688]
[1767404401142,2.43356713,3129.1,3128.5,0.001]
[1767404407461,2.29576548,3128.9,3128.0,2.48789563]
[1767404407759,2.29576548,3128.6,3128.0,0.001]
[1767404407929,2.29576548,3128.5,3128.0,0.001]
[1767404409532,2.29776548,3128.5,3128.0,0.001]
[1767404410040,2.29576548,3128.3,3127.8,0.001]
[1767404414038,2.29576548,3128.3,3127.6,2.48789563]
[1767404414240,0.58642967,3128.2,3127.6,2.48789563]
[1767404424988,2.29576548,3128.1,3127.6,0.001]
[1767404426179,3.78317587,3128.2,3127.6,0.001]
[1767404427254,2.29576548,3128.1,3127.6,0.001]
[1767404427476,3.78317587,3128.2,3127.5,0.001]
[1767404427782,0.37831759,3128.1,3127.5,2.48789563]
[1767404428968,0.002,3129.2,3128.6,2.48505619]
[1767404431102,2.40046882,3129.2,3128.6,2.48505619]
[1767404431303,0.5969,3129.1,3128.6,2.48505619]
[1767404431997,2.40046882,3129.2,3128.6,2.48505619]
[1767404436366,7.60505821,3129.4,3129.1,2.27619965]
[1767404436367,3.57053123,3129.4,3129.1,2.27619965]
[1767404436573,0.002,3129.8,3129.2,3.56853123]
[1767404436790,1.04294402,3130.5,3129.7,2.27619965]
[1767404436970,1.3270465,3130.5,3129.7,2.27619965]
[1767404437165,1.04094402,3130.4,3129.7,2.27619965]
[1767404439213,1.04094402,3130.4,3129.0,0.95908081]
[1767404439214,1.04094402,3130.4,3129.3,3.19556836]
[1767404439415,1.04094402,3130.3,3129.4,2.27619965]
[1767404439694,1.04094402,3130.1,3129.4,2.27619965]
[1767404440400,0.42354386,3130.2,3129.5,2.27619965]
[1767404440587,1.04094402,3130.3,3129.5,2.27619965]
[1767404444020,1.04094402,3130.2,3129.5,2.27619965]
[1767404444192,0.839,3130.1,3129.5,2.27619965]
[1767404444829,1.04094402,3130.0,3129.3,3.1955986]
[1767404444989,1.04094402,3130.0,3129.3,5.47179825]
[1767404445198,1.22893842,3130.0,3129.3,5.47179825]
[1767404447625,1.22893842,3130.0,3129.4,2.27619965]
[1767404447818,1.04094402,3130.0,3129.4,2.27619965]
[1767404448023,0.839,3130.1,3129.4,2.27619965]
[1767404449698,0.839,3130.1,3129.5,2.27619965]
[1767404451696,0.841,3130.1,3129.5,2.27619965]
[1767404451901,0.841,3130.1,3129.5,5.47154749]
[1767404452327,0.841,3130.1,3129.5,2.27619965]
[1767404452730,0.841,3130.1,3129.5,5.47153781]
[1767404456432,0.841,3130.1,3129.5,2.27619965]
[1767404456636,0.841,3130.1,3129.5,5.47156731]
[1767404456929,0.002,3130.1,3129.6,2.27619965]
[1767404457130,1.04194402,3131.3,3130.1,2.27619965]
[1767404457310,1.04194402,3131.3,3130.5,2.27619965]
[1767404457509,0.002,3131.4,3130.5,2.27619965]
[1767404457716,0.838,3131.3,3130.5,2.27619965]
[1767404457903,0.002,3131.4,3130.5,2.27619965]
[1767404458103,0.838,3131.3,3130.5,2.27619965]
[1767404458334,0.838,3131.2,3130.5,2.27619965]
[1767404458532,0.838,3131.2,3130.7,2.27619965]
[1767404460911,1.04394402,3131.1,3130.4,3.19445715]
[1767404461320,1.04394402,3131.1,3130.3,5.57567554]
[1767404461531,1.04394402,3131.1,3130.4,3.19446663]
[1767404461731,1.23213842,3131.0,3130.4,3.19446663]
[1767404466040,1.23213842,3131.0,3130.3,5.57568922]
[1767404466231,1.23413842,3131.0,3130.3,3.19453779]
[1767404467033,1.23413842,3131.0,3130.1,5.57589097]
[1767404467234,1.23413842,3131.0,3130.1,2.38115143]
[1767404467427,1.04394402,3130.9,3130.1,3.19474913]
[1767404467628,1.04394402,3130.7,3129.9,5.57612366]
[1767404467831,1.88194402,3130.6,3129.9,5.57612366]
[1767404468322,1.88194402,3130.6,3130.0,3.19488817]
[1767404469826,1.04394402,3130.5,3129.9,2.38115143]
[1767404470139,0.838,3130.6,3129.7,3.1951317]
[1767404470140,1.23213842,3130.4,3129.7,3.1951317]
[1767404470641,1.23213842,3130.4,3129.6,5.57644729]
[1767404470829,1.23213842,3130.4,3129.7,3.19519322]
[1767404471439,1.23213842,3130.4,3129.6,5.57640426]
[1767404471621,1.23213842,3130.4,3129.7,3.19519423]
[1767404472152,1.23213842,3130.4,3129.7,2.38115143]
[1767404472748,1.48659674,3130.3,3129.7,2.38115143]
[1767404474120,1.04394402,3130.3,3129.7,2.38115143]
[1767404476954,1.04394402,3130.3,3129.6,0.001]
[1767404477327,1.04394402,3130.3,3129.6,5.57742977]
[1767404478226,1.04394402,3130.3,3129.7,3.19519035]
[1767404478426,0.1881944,3130.4,3129.7,5.57634178]
[1767404478650,1.23213842,3130.4,3129.7,5.57634178]
[1767404478929,1.23213842,3130.4,3129.7,2.38115143]
[1767404479230,0.44265248,3130.3,3129.7,2.38115143]
[1767404483134,0.44265248,3130.3,3129.7,5.57633467]
[1767404483527,1.23213842,3130.4,3129.7,5.57633467]
[1767404486163,0.1881944,3130.4,3129.8,2.38115143]
[1767404486758,0.838,3130.3,3129.9,2.38115143]
[1767404486958,1.04394402,3130.9,3130.2,2.38015143]
[1767404487170,0.838,3130.8,3130.2,2.38015143]
[1767404489054,0.002,3130.7,3130.2,2.38015143]
[1767404489255,2.07333842,3130.7,3129.7,2.46576459]
[1767404489441,2.07333842,3130.7,3129.8,2.44454309]
[1767404489643,2.07333842,3130.7,3129.9,2.44454309]
[1767404496578,5.26753109,3130.7,3129.9,2.44454309]
[1767404500783,1.88294402,3130.6,3129.9,2.44454309]
[1767404500983,0.52675311,3130.5,3129.9,2.44454309]
[1767404502666,2.40969713,3130.5,3129.9,2.44454309]
[1767404505387,2.41169713,3130.5,3129.9,2.44454309]
[1767404506384,0.52875311,3130.5,3129.9,2.44454309]
[1767404512895,0.52875311,3130.5,3129.9,2.44554309]
[1767404519497,0.52875311,3130.5,3129.9,2.44454309]
[1767404519714,5.08032912,3130.5,3129.9,2.44454309]
[1767404520207,1.88594402,3130.5,3129.9,2.44454309]
[1767404520706,0.002,3130.5,3129.9,2.44454309]
[1767404521812,0.838,3130.4,3129.9,2.44454309]
[1767404527189,4.03252777,3130.4,3129.9,0.001]
[1767404527395,0.59184718,3130.3,3129.7,2.39912718]
[1767404527976,2.4767912,3130.3,3129.6,0.001]
[1767404528721,2.4767912,3130.3,3129.5,2.40012718]